fUST/lending_fUST_20260116
["ID","MTS","AMOUNT","RATE_DAILY","PERIOD"]
[402051790,1768498241149,-500.0,0.00013699,2]
[402051791,1768498241158,-500.0,0.00013699,2]
[402051792,1768498241167,-500.0,0.00013699,2]
[402051793,1768498241176,-500.0,0.00013699,2]
[402051794,1768498241185,-308.12834967,0.00013699,2]
[402051795,1768498241194,-502.0049811,0.00013699,2]
[402051796,1768498241203,-500.0,0.00013699,2]
[402051797,1768498241212,-500.0,0.00013699,2]
[402051798,1768498241223,-596.52592323,0.00013699,2]
[402051799,1768498241232,-678.0,0.00013721,2]
[402051800,1768498241242,-158.55298923,0.00013821,2]
[402051801,1768498241251,-1000.0,0.00013821,2]
[402051802,1768498241261,-456.61841221,0.00013821,2]
[402051803,1768498241270,-500.0,0.00013821,2]
[402051804,1768498241279,-1000.0,0.00013821,2]
[402051805,1768498241289,-1000.0,0.00013821,2]
[402051806,1768498241298,-574.08865466,0.00013821,2]
[402051807,1768498241308,-1000.0,0.00013821,2]
[402051808,1768498241317,-1000.0,0.00013821,2]
[402051809,1768498241326,-678.0,0.00013858,2]
[402051810,1768498241335,-344.12119672,0.00013901,2]
[402051811,1768498241344,-697.83414865,0.00013995,2]
[402051812,1768498241354,-1000.0,0.00014025,2]
[402051813,1768498241362,-4385.72914429,0.00014147,2]
[402051814,1768498241372,-155.0,0.00014151,2]
[402051815,1768498241381,-100000.0,0.00014152,2]
[402051816,1768498241390,-600.0,0.00014221,2]
[402051817,1768498241399,-920.28537916,0.00014247,2]
[402051818,1768498241408,-504.7283729,0.00014247,2]
[402051819,1768498241421,-1000.0,0.00014247,2]
[402051820,1768498241437,-193.89026614,0.00014247,2]
[402051821,1768498241448,-1000.0,0.00014247,2]
[402051822,1768498241459,-1000.0,0.00014247,2]
[402051823,1768498241468,-431.404347,0.00014247,2]
[402051824,1768498241477,-1000.0,0.00014247,2]
[402051825,1768498241486,-1000.0,0.00014247,2]
[402051826,1768498241496,-1000.0,0.00014247,2]
[402051827,1768498241505,-1000.0,0.00014247,2]
[402051828,1768498241515,-1000.0,0.00014247,2]
[402051829,1768498241524,-500.0,0.00014247,2]
[402051830,1768498241533,-310.24231288,0.00014247,2]
[402051831,1768498241542,-250.0,0.00014247,2]
[402051832,1768498241551,-502.24534211,0.00014247,2]
[402051833,1768498241560,-1000.0,0.00014247,2]
[402051834,1768498241569,-1000.0,0.00014368,2]
[402051835,1768498241579,-1500.0,0.00014368,2]
[402051836,1768498241588,-1500.0,0.00014368,2]
[402051837,1768498241597,-1500.0,0.00014368,2]
[402051838,1768498241607,-500.0,0.00014483,2]
[402051839,1768498241616,-500.0,0.00014483,2]
[402051840,1768498241625,-500.0,0.00014483,2]
[402051841,1768498241635,-500.0,0.00014483,2]
[402051842,1768498241645,-500.0,0.00014483,2]
[402051843,1768498241654,-500.0,0.00014483,2]
[402051844,1768498241663,-500.0,0.00014483,2]
[402051845,1768498241672,-500.0,0.00014483,2]
[402051846,1768498241682,-500.0,0.00014483,2]
[402051847,1768498241691,-500.0,0.00014483,2]
[402051848,1768498241701,-500.0,0.00014483,2]
[402051849,1768498241710,-500.0,0.00014483,2]
[402051850,1768498241719,-500.0,0.00014483,2]
[402051851,1768498241729,-500.0,0.00014483,2]
[402051852,1768498241739,-500.0,0.00014483,2]
[402051853,1768498241748,-500.0,0.00014483,2]
[402051854,1768498241757,-232.06511504,0.00014483,2]
[402051855,1768498241766,-5000.0,0.0001451,2]
[402051856,1768498241775,-629.0,0.00014633,2]
[402051857,1768498241784,-300.0,0.00014768,2]
[402051858,1768498241793,-1500.0,0.00014795,2]
[402051859,1768498241804,-1500.0,0.00014795,2]
[402051860,1768498241813,-1500.0,0.00014795,2]
[402051861,1768498241822,-1500.0,0.00014795,2]
[402051862,1768498241831,-1200.0,0.00014795,2]
[402051863,1768498241841,-1500.0,0.00014795,2]
[402051864,1768498241850,-201.04460068,0.00014795,2]
[402051865,1768498241859,-242.15507317,0.00014795,2]
[402051866,1768498241869,-595.0712599,0.000149,2]
[402051867,1768498241878,-1002.40018303,0.00014916,2]
[402051868,1768498241887,-1073.16021096,0.00014916,2]
[402051869,1768498241896,-2000.0,0.00014916,2]
[402051870,1768498241906,-1152.0,0.00014958,2]
[402051871,1768498241915,-1372.56361004,0.00015,3]
[402051872,1768498241924,-151.02787374,0.00015,2]
[402051873,1768498241933,-91114.35744577,0.00015,7]
[402051874,1768498241942,-204.993966,0.00015068,2]
[402051875,1768498241951,-2000.0,0.00015342,2]
[402051876,1768498241960,-890.91804532,0.00015342,2]
[402051877,1768498241971,-605.07188428,0.00015342,2]
[402051878,1768498241980,-2065.26822594,0.00015342,2]
[402051879,1768498241990,-2000.0,0.00015342,2]
[402051880,1768498241999,-1000.0,0.00015427,2]
[402051881,1768498242009,-244.0,0.00015427,2]
[402051882,1768498242018,-2500.0,0.00015464,2]
[402051883,1768498242027,-155.0,0.00015566,2]
[402051884,1768498242036,-2500.0,0.0001589,2]
[402051885,1768498242046,-2500.0,0.0001589,2]
[402051886,1768498242055,-389.66664922,0.00015901,2]
[402051887,1768498242064,-215.91779165,0.00016,2]
[402051888,1768498242073,-13006.223282,0.00016,7]
[402051889,1768498242082,-3000.0,0.00016012,2]
[402051890,1768498242091,-151.0,0.00016438,2]
[402051891,1768498242100,-164.30818849,0.00016438,2]
[402051892,1768498242110,-1500.0,0.00016438,2]
[402051893,1768498242119,-3000.0,0.00016438,2]
[402051894,1768498242127,-184.58,0.0001644,2]
[402051895,1768498242137,-184.58,0.0001644,2]
[402051896,1768498242146,-184.58,0.0001644,2]
[402051897,1768498242155,-1613.0,0.0001645,2]
[402051898,1768498242163,-200.0,0.00016473,2]
[402051899,1768498242172,-3503.04077884,0.0001656,2]
[402051900,1768498242181,-1000.0,0.0001697,2]
[402051901,1768498242189,-492.0,0.0001697,2]
[402051902,1768498242199,-155.0,0.00016981,2]
[402051903,1768498242208,-16366.409494,0.00016986,7]
[402051904,1768498242217,-3500.0,0.00016986,2]
[402051905,1768498242226,-111514.58939411,0.00017,2]
[402051906,1768498242235,-58714.84468794,0.0001701,3]
[402051907,1768498242244,-7937.64798993,0.00017133,2]
[402051908,1768498242253,-271.0,0.00017223,2]
[402051909,1768498242262,-4207.519175,0.00017223,7]
[402051910,1768498242272,-532.6,0.00017233,2]
[402051911,1768498242281,-312.0,0.00017362,2]
[402051912,1768498242290,-5000.0,0.00017412,2]
[402051913,1768498242301,-386.0,0.00017519,2]
[402051914,1768498242310,-2500.0,0.00017534,2]
[402051915,1768498242319,-30000.0,0.00017593,2]
[402051916,1768498242328,-1957.856,0.00017593,2]
[402051917,1768498242337,-151.0,0.00017593,2]
[402051918,1768498242346,-250.0,0.00017593,2]
[402051919,1768498242355,-250.0,0.00017593,2]
[402051920,1768498242364,-1000.0,0.00017593,2]
[402051921,1768498242373,-151.0,0.00017593,2]
[402051922,1768498242382,-250.0,0.00017593,2]
[402051923,1768498242391,-1000.0,0.00017593,2]
[402051924,1768498242400,-250.0,0.00017593,2]
[402051925,1768498242409,-151.0,0.00017593,2]
[402051926,1768498242418,-250.0,0.00017593,2]
[402051927,1768498242428,-1000.0,0.00017593,2]
[402051928,1768498242438,-250.0,0.00017593,2]
[402051929,1768498242447,-151.0,0.00017593,2]
[402051930,1768498242456,-250.0,0.00017593,2]
[402051931,1768498242467,-1000.0,0.00017593,2]
[402051932,1768498242476,-250.0,0.00017593,2]
[402051933,1768498242485,-151.0,0.00017593,2]
[402051934,1768498242494,-250.0,0.00017593,2]
[402051935,1768498242504,-250.0,0.00017593,2]
[402051936,1768498242513,-1000.0,0.00017593,2]
[402051937,1768498242522,-250.0,0.00017593,2]
[402051938,1768498242532,-151.0,0.00017593,2]
[402051939,1768498242541,-250.0,0.00017593,2]
[402051940,1768498242550,-250.0,0.00017593,2]
[402051941,1768498242559,-1000.0,0.00017593,2]
[402051942,1768498242568,-445.202766,0.00017593,2]
[402051943,1768498242577,-250.0,0.00017593,2]
[402051944,1768498242586,-151.0,0.00017593,2]
[402051945,1768498242595,-273.53456012,0.00017593,2]
[402051946,1768498242605,-1000.0,0.00017593,2]
[402051947,1768498242614,-250.0,0.00017593,2]
[402051948,1768498242623,-250.0,0.00017593,2]
[402051949,1768498242633,-151.0,0.00017593,2]
[402051950,1768498242642,-1000.0,0.00017593,2]
[402051951,1768498242652,-250.0,0.00017593,2]
[402051952,1768498242661,-151.0,0.00017593,2]
[402051953,1768498242671,-250.0,0.00017593,2]
[402051954,1768498242681,-1000.0,0.00017593,2]
[402051955,1768498242690,-250.0,0.00017593,2]
[402051956,1768498242700,-151.0,0.00017593,2]
[402051957,1768498242709,-250.0,0.00017593,2]
[402051958,1768498242718,-1000.0,0.00017593,2]
[402051959,1768498242727,-250.0,0.00017593,2]
[402051960,1768498242737,-151.0,0.00017593,2]
[402051961,1768498242747,-250.0,0.00017593,2]
[402051962,1768498242755,-1000.0,0.00017593,2]
[402051963,1768498242765,-380.99585983,0.00017593,2]
[402051964,1768498242774,-151.0,0.00017593,2]
[402051965,1768498242783,-323.29083411,0.00017593,2]
[402051966,1768498242792,-1000.0,0.00017593,2]
[402051967,1768498242803,-151.0,0.00017593,2]
[402051968,1768498242811,-1000.0,0.00017593,2]
[402051969,1768498242819,-151.0,0.00017593,2]
[402051970,1768498242828,-1000.0,0.00017593,2]
[402051971,1768498242838,-151.0,0.00017593,2]
[402051972,1768498242847,-1000.0,0.00017593,2]
[402051973,1768498242856,-151.0,0.00017593,2]
[402051974,1768498242865,-1000.0,0.00017593,2]
[402051975,1768498242875,-198.1626915,0.00017593,2]
[402051976,1768498242884,-1000.0,0.00017593,2]
[402051977,1768498242893,-151.0,0.00017593,2]
[402051978,1768498242903,-1000.0,0.00017593,2]
[402051979,1768498242912,-162.380719,0.00017593,2]
[402051980,1768498242922,-242.59349996,0.00017593,2]
[402051981,1768498242931,-162.380719,0.00017593,2]
[402051982,1768498242940,-168.3888056,0.00017593,2]
[402051983,1768498242950,-174.61919141,0.00017593,2]
[402051984,1768498242959,-181.08010149,0.00017593,2]
[402051985,1768498242968,-151.0,0.00017593,2]
[402051986,1768498242978,-187.78006525,0.00017593,2]
[402051987,1768498242987,-151.0,0.00017593,2]
[402051988,1768498242999,-194.72792766,0.00017593,2]
[402051989,1768498243009,-151.0,0.00017593,2]
[402051990,1768498243019,-151.0,0.00017593,2]
[402051992,1768498243029,-2150.738,0.00017593,2]
[402051994,1768498243038,-201.93286099,0.00017593,2]
[402051995,1768498243047,-151.0,0.00017593,2]
[402051996,1768498243058,-151.0,0.00017593,2]
[402051997,1768498243068,-250.0,0.00017593,2]
[402051998,1768498243084,-209.40437684,0.00017593,2]
[402051999,1768498243094,-151.0,0.00017593,2]
[402052000,1768498243103,-151.0,0.00017593,2]
[402052001,1768498243112,-151.0,0.00017593,2]
[402052002,1768498243122,-217.15233878,0.00017593,2]
[402052003,1768498243131,-151.0,0.00017593,2]
[402052004,1768498243141,-151.0,0.00017593,2]
[402052005,1768498243150,-225.18697532,0.00017593,2]
[402052006,1768498243159,-151.0,0.00017593,2]
[402052007,1768498243169,-151.0,0.00017593,2]
[402052008,1768498243177,-233.51889341,0.00017593,2]
[402052009,1768498243187,-151.0,0.00017593,2]
[402052010,1768498243196,-151.0,0.00017593,2]
[402052011,1768498243206,-242.15909246,0.00017593,2]
[402052012,1768498243214,-151.0,0.00017593,2]
[402052013,1768498243223,-151.0,0.00017593,2]
[402052014,1768498243232,-251.11897888,0.00017593,2]
[402052016,1768498243242,-151.0,0.00017593,2]
[402052018,1768498243251,-151.0,0.00017593,2]
[402052020,1768498243261,-260.4103811,0.00017593,2]
[402052021,1768498243270,-151.0,0.00017593,2]
[402052022,1768498243280,-151.0,0.00017593,2]
[402052023,1768498243290,-270.0455652,0.00017593,2]
[402052024,1768498243299,-151.0,0.00017593,2]
[402052025,1768498243310,-151.0,0.00017593,2]
[402052026,1768498243319,-280.03725112,0.00017593,2]
[402052027,1768498243329,-151.0,0.00017593,2]
[402052028,1768498243339,-151.0,0.00017593,2]
[402052029,1768498243348,-290.39862941,0.00017593,2]
[402052030,1768498243358,-187.96041165,0.00017593,2]
[402052031,1768498243368,-151.0,0.00017593,2]
[402052032,1768498243378,-301.1433787,0.00017593,2]
[402052034,1768498243387,-151.0,0.00017593,2]
[402052036,1768498243396,-151.0,0.00017593,2]
[402052037,1768498243407,-151.0,0.00017593,2]
[402052039,1768498243416,-151.0,0.00017593,2]
[402052040,1768498243428,-151.0,0.00017593,2]
[402052042,1768498243437,-151.0,0.00017593,2]
[402052043,1768498243447,-151.0,0.00017593,2]
[402052044,1768498243456,-629.0,0.00017633,2]
[402052045,1768498243467,-2030.296672,0.00017648,2]
[402052046,1768498243476,-2105.41764886,0.00017703,2]
[402052047,1768498243485,-2183.31810187,0.00017758,2]
[402052048,1768498243496,-3188.69506145,0.00017782,2]
[402052049,1768498243505,-5868.8535287,0.000178,3]
[402052050,1768498243515,-2264.10087164,0.00017813,2]
[402052051,1768498243524,-532.6,0.00017861,2]
[402052052,1768498243533,-2347.87260389,0.00017868,2]
[402052053,1768498243543,-435.21210173,0.00017901,2]
[402052054,1768498243553,-1156.81981869,0.00017923,2]
[402052056,1768498243564,-9761.90587199,0.00018,2]
[402052058,1768498243574,-2258.0,0.00018091,2]
[402052059,1768498243585,-787.62534036,0.00018125,2]
[402052060,1768498243595,-180.1170761,0.00018128,2]
[402052061,1768498243605,-31110.0,0.00018141,2]
[402052062,1768498243615,-461.67526834,0.00018141,2]
[402052063,1768498243625,-2230.315306,0.00018141,2]
[402052064,1768498243635,-5419.259701,0.000184,7]
[402052065,1768498243645,-1173.77,0.000184,3]
[402052066,1768498243656,-532.6,0.00018489,2]
[402052067,1768498243665,-204.993966,0.00018493,2]
[402052068,1768498243675,-1000.0,0.00018667,2]
[402052069,1768498243684,-791.0,0.00018667,2]
[402052071,1768498243694,-32261.07,0.00018689,2]
[402052072,1768498243703,-478.75725327,0.00018689,2]
[402052073,1768498243713,-2312.83697232,0.00018689,2]
[402052074,1768498243723,-800.0,0.0001885,2]
[402052075,1768498243733,-5000.0,0.00018863,2]
[402052076,1768498243743,-303.10001603,0.000189,2]
[402052077,1768498243752,-168.3888056,0.00018962,2]
[402052078,1768498243762,-1041.66666667,0.00018965,2]
[402052079,1768498243771,-812.37465964,0.00019024,2]
[402052080,1768498243781,-2048.49,0.00019057,2]
[402052081,1768498243791,-303.10001603,0.00019089,2]
[402052082,1768498243801,-532.6,0.00019117,2]
[402052083,1768498243814,-845.3974,0.00019178,2]
[402052084,1768498243824,-200.0,0.00019178,2]
[402052085,1768498243834,-845.3974,0.00019178,2]
[402052086,1768498243844,-845.3974,0.00019178,2]
[402052087,1768498243854,-640.49,0.00019178,2]
[402052088,1768498243863,-2500.0,0.00019178,2]
[402052089,1768498243873,-1500.0,0.00019178,2]
[402052090,1768498243883,-507.2385,0.00019178,2]
[402052091,1768498243894,-200.01,0.00019178,2]
[402052092,1768498243904,-507.23,0.00019178,2]
[402052093,1768498243913,-507.2385,0.00019178,2]
[402052094,1768498243923,-507.2385,0.00019178,2]
[402052096,1768498243933,-507.23,0.00019178,2]
[402052097,1768498243942,-507.2385,0.00019178,2]
[402052098,1768498243952,-500.0,0.00019178,2]
[402052099,1768498243961,-500.0,0.00019178,2]
[402052100,1768498243971,-500.0,0.00019178,2]
[402052102,1768498243980,-500.0,0.00019178,2]
[402052103,1768498243990,-500.0,0.00019178,2]
[402052104,1768498243999,-500.0,0.00019178,2]
[402052105,1768498244018,-500.0,0.00019178,2]
[402052106,1768498244028,-499.21,0.00019178,2]
[402052107,1768498244038,-507.2385,0.00019178,2]
[402052108,1768498244047,-507.2385,0.00019178,2]
[402052109,1768498244059,-5000.0,0.00019178,2]
[402052110,1768498244070,-5000.0,0.00019178,2]
[402052111,1768498244080,-5000.0,0.00019178,2]
[402052112,1768498244090,-151.0,0.00019178,2]
[402052113,1768498244100,-159.17,0.000192,2]
[402052114,1768498244110,-167.84,0.000192,2]
[402052115,1768498244119,-17859.12,0.000192,2]
[402052116,1768498244129,-157.97,0.000192,2]
[402052117,1768498244139,-3656.35,0.000192,2]
[402052118,1768498244149,-12405.45456489,0.00019237,2]
[402052119,1768498244159,-496.47127164,0.00019237,2]
[402052120,1768498244169,-2398.4119403,0.00019237,2]
[402052121,1768498244179,-303.10001603,0.00019278,2]
[402052122,1768498244188,-5000.0,0.00019339,2]
[402052123,1768498244198,-303.10001603,0.00019467,2]
[402052124,1768498244208,-845.3974,0.00019589,3]
[402052125,1768498244218,-845.3974,0.00019589,3]
[402052126,1768498244228,-845.3974,0.00019589,3]
[402052127,1768498244238,-778.0,0.000196,2]
[402052128,1768498244248,-243.48264022,0.00019627,2]
[402052129,1768498244258,-303.10001603,0.00019656,2]
[402052130,1768498244268,-1173.77,0.000197,3]
[402052131,1768498244278,-800.0,0.00019704,2]
[402052132,1768498244288,-250.0,0.00019726,2]
[402052133,1768498244298,-532.6,0.00019745,2]
[402052134,1768498244310,-514.84070869,0.00019785,2]
[402052135,1768498244320,-2487.15318209,0.00019785,2]
[402052136,1768498244330,-1753.132989,0.00019806,7]
[402052137,1768498244340,-454.65002405,0.00019845,4]
[402052138,1768498244349,-631.5965172,0.00019873,2]
[402052139,1768498244359,-386.42909031,0.00019873,2]
[402052140,1768498244369,-1545.71636123,0.00019873,2]
[402052141,1768498244379,-3477.86181277,0.00019873,2]
[402052142,1768498244389,-6182.86544492,0.00019873,2]
[402052143,1768498244399,-760.40035965,0.00019873,2]
[402052144,1768498244409,-3041.6014386,0.00019873,2]
[402052145,1768498244419,-6843.60323684,0.00019873,2]
[402052146,1768498244431,-2232.0,0.00019896,2]
[402052147,1768498244443,-480.75755424,0.00019901,2]
[402052148,1768498244453,-4517.246266,0.00019948,2]
[402052149,1768498244463,-4012.0586772,0.00019948,2]
[402052150,1768498244473,-66724.703008,0.00019948,2]
[402052151,1768498244483,-2000.0,0.0001995,2]
[402052152,1768498244493,-2000.0,0.0001995,2]
[402052153,1768498244502,-2000.0,0.0001995,2]
[402052154,1768498244515,-2000.0,0.0001995,2]
[402052155,1768498244525,-2000.0,0.0001995,2]
[402052156,1768498244534,-2000.0,0.0001995,2]
[402052157,1768498244544,-2000.0,0.0001995,2]
[402052158,1768498244554,-2000.0,0.0001995,2]
[402052159,1768498244565,-2000.0,0.0001995,2]
[402052160,1768498244574,-2000.0,0.0001995,2]
[402052161,1768498244584,-2000.0,0.0001995,2]
[402052162,1768498244594,-2000.0,0.0001995,2]
[402052163,1768498244604,-2000.0,0.0001995,2]
[402052164,1768498244614,-2000.0,0.0001995,2]
[402052165,1768498244624,-2000.0,0.0001995,2]
[402052166,1768498244634,-2000.0,0.0001995,2]
[402052167,1768498244644,-1023.879,0.0001995,2]
[402052168,1768498244654,-1000.0,0.0001995,2]
[402052169,1768498244664,-1000.0,0.0001995,2]
[402052170,1768498244674,-1000.0,0.0001995,2]
[402052171,1768498244684,-1000.0,0.0001995,2]
[402052172,1768498244695,-1000.0,0.0001995,2]
[402052173,1768498244706,-475.0,0.0001995,2]
[402052174,1768498244716,-475.0,0.0001995,2]
[402052175,1768498244727,-475.0,0.0001995,2]
[402052176,1768498244737,-475.0,0.0001995,2]
[402052177,1768498244748,-475.0,0.0001995,2]
[402052178,1768498244758,-475.0,0.0001995,2]
[402052179,1768498244769,-475.0,0.0001995,2]
[402052180,1768498244779,-475.0,0.0001995,2]
[402052181,1768498244790,-475.0,0.0001995,2]
[402052182,1768498244800,-475.0,0.0001995,2]
[402052183,1768498244812,-475.0,0.0001995,2]
[402052184,1768498244822,-475.0,0.0001995,2]
[402052185,1768498244832,-475.0,0.0001995,2]
[402052186,1768498244843,-475.0,0.0001995,2]
[402052187,1768498244852,-475.0,0.0001995,2]
[402052188,1768498244862,-475.0,0.0001995,2]
[402052189,1768498244872,-475.0,0.0001995,2]
[402052190,1768498244882,-475.0,0.0001995,2]
[402052191,1768498244892,-475.0,0.0001995,2]
[402052192,1768498244902,-475.0,0.0001995,2]
[402052193,1768498244912,-475.0,0.0001995,2]
[402052194,1768498244922,-475.0,0.0001995,2]
[402052195,1768498244932,-475.0,0.0001995,2]
[402052196,1768498244942,-475.0,0.0001995,2]
[402052197,1768498244953,-475.0,0.0001995,2]
[402052198,1768498244964,-475.0,0.0001995,2]
[402052199,1768498244974,-475.0,0.0001995,2]
[402052200,1768498244984,-475.0,0.0001995,2]
[402052201,1768498244994,-475.0,0.0001995,2]
[402052202,1768498245004,-475.0,0.0001995,2]
[402052203,1768498245014,-475.0,0.0001995,2]
[402052204,1768498245024,-475.0,0.0001995,2]
[402052205,1768498245034,-475.0,0.0001995,2]
[402052206,1768498245044,-475.0,0.0001995,2]
[402052207,1768498245056,-475.0,0.0001995,2]
[402052208,1768498245065,-475.0,0.0001995,2]
[402052209,1768498245075,-475.0,0.0001995,2]
[402052210,1768498245085,-475.0,0.0001995,2]
[402052211,1768498245095,-475.0,0.0001995,2]
[402052212,1768498245105,-475.0,0.0001995,2]
[402052213,1768498245115,-475.0,0.0001995,2]
[402052214,1768498245126,-475.0,0.0001995,2]
[402052215,1768498245135,-475.0,0.0001995,2]
[402052216,1768498245146,-475.0,0.0001995,2]
[402052217,1768498245156,-475.0,0.0001995,2]
[402052218,1768498245166,-475.0,0.0001995,2]
[402052219,1768498245176,-475.0,0.0001995,2]
[402052220,1768498245186,-475.0,0.0001995,2]
[402052221,1768498245196,-475.0,0.0001995,2]
[402052222,1768498245206,-475.0,0.0001995,2]
[402052223,1768498245216,-475.0,0.0001995,2]
[402052224,1768498245226,-403.609,0.0001995,2]
[402052225,1768498245235,-1000.0,0.0001995,2]
[402052226,1768498245246,-642.80555539,0.0001995,2]
[402052227,1768498245255,-2073117.45805158,0.0001995,2]
[402052228,1768498245266,-2000.0,0.00019968,7]
[402052229,1768498245276,-363951.83833046,0.00019998,2]
[402052230,1768498245286,-3000.0,0.00019999,7]
[402052231,1768498245296,-384.3523,0.0002,2]
[402052232,1768498245309,-500.0,0.0002,2]
[402052233,1768498245319,-500.0,0.0002,2]
[402052234,1768498245329,-154.8184438,0.0002,2]
[402052235,1768498245339,-500.0,0.0002,2]
[402052236,1768498245349,-358.96523988,0.0002,7]
[402052237,1768498245358,-500.5167,0.0002,30]
[402052238,1768498245368,-845.3974,0.0002,4]
[402052239,1768498245378,-845.3974,0.0002,4]
[402052240,1768498245388,-17859.12,0.0002,2]
[402052241,1768498245398,-507.2315,0.0002,4]
[402052242,1768498245408,-250.0,0.0002,10]
[402052243,1768498245418,-338.1715,0.0002,4]
[402052244,1768498245428,-507.2385,0.0002,4]
[402052245,1768498245442,-183.24618593,0.0002,2]
[402052246,1768498245452,-507.2385,0.0002,4]
[402052247,1768498245462,-507.2385,0.0002,4]
[402052248,1768498245474,-454.65002405,0.00020034,4]
[402052249,1768498245484,-159.17,0.000201,2]
[402052250,1768498245760,-157.97,0.000201,2]
[402052251,1768498245771,-3656.35,0.000201,2]
[402052252,1768498245784,-250.0,0.000201,10]
[402052253,1768498245794,-250.0,0.000202,10]
[402052254,1768498245803,-454.65002405,0.00020223,4]
[402052255,1768498245818,-350.0,0.00020274,2]
[402052256,1768498245827,-250.0,0.000203,10]
[402052257,1768498245837,-800.0,0.0002031,2]
[402052258,1768498245847,-169.11441979,0.00020331,2]
[402052259,1768498245857,-373.71382468,0.00020333,2]
[402052260,1768498245866,-1158.25313548,0.00020333,2]
[402052261,1768498245876,-532.6,0.00020373,2]
[402052262,1768498245885,-250.0,0.000204,10]
[402052263,1768498245895,-507.2385,0.00020411,5]
[402052264,1768498245904,-454.65002405,0.00020412,4]
[402052265,1768498245915,-236.89225561,0.00020438,3]
[402052266,1768498245924,-5261.70677707,0.00020438,3]
[402052267,1768498245933,-800.0,0.00020459,2]
[402052268,1768498245943,-2000.0,0.0002047,7]
[402052269,1768498245952,-250.0,0.000205,10]
[402052270,1768498245961,-1000.0,0.00020533,2]
[402052272,1768498245971,-1000.0,0.00020533,2]
[402052273,1768498245981,-1399.625495,0.00020548,2]
[402052274,1768498245990,-153.0,0.00020571,2]
[402052276,1768498246000,-153.0,0.00020571,2]
[402052278,1768498246009,-153.0,0.00020571,2]
[402052280,1768498246019,-153.0,0.00020571,2]
[402052282,1768498246028,-153.0,0.00020571,2]
[402052284,1768498246037,-153.0,0.00020571,2]
[402052286,1768498246047,-153.0,0.00020571,2]
[402052288,1768498246060,-153.0,0.00020571,2]
[402052290,1768498246070,-298.73825479,0.00020571,2]
[402052292,1768498246079,-1528.0,0.00020589,2]
[402052294,1768498246088,-250.0,0.000206,10]
[402052296,1768498246098,-454.65002403,0.00020601,4]
[402052298,1768498246107,-629.0,0.00020633,2]
[402052300,1768498246117,-700.0,0.00020691,2]
[402052301,1768498246126,-250.0,0.000207,10]
[402052302,1768498246135,-700.0,0.00020734,2]
[402052303,1768498246144,-500.0,0.00020784,2]
[402052304,1768498246153,-17859.12,0.000208,2]
[402052305,1768498246163,-250.0,0.000208,10]
[402052306,1768498246172,-700.0,0.0002082,2]
[402052307,1768498246182,-450.0,0.00020822,2]
[402052308,1768498246191,-700.0,0.00020852,2]
[402052309,1768498246201,-728.0,0.00020858,2]
[402052310,1768498246210,-159.17,0.000209,2]
[402052311,1768498246219,-157.97,0.000209,2]
[402052312,1768498246229,-3656.35,0.000209,2]
[402052313,1768498246238,-151.0,0.000209,3]
[402052314,1768498246248,-250.0,0.000209,10]
[402052316,1768498246257,-151.0,0.000209,3]
[402052318,1768498246267,-700.0,0.0002095,2]
[402052319,1768498246276,-200.0,0.00020966,2]